bitfinex-derivatives/quotes_BTCF0:USTF0_20241213
["timestamp","ask_amount","ask_price","bid_price","bid_amount"]
[1734058683582,0.050263,99454.0,99453.0,0.17969093]
[1734058684287,0.050263,99454.0,99440.0,0.00150838]
[1734058684288,0.13234343,99454.0,99441.0,0.050269]
[1734058684580,0.002,99460.0,99450.0,0.3608]
[1734058684792,0.001,99460.0,99459.0,0.23964435]
[1734058685086,0.002,99460.0,99457.0,0.050261]
[1734058685388,0.001,99460.0,99458.0,0.05026]
[1734058685889,0.0318,99470.0,99451.0,0.0345]
[1734058685890,0.411057,99465.0,99461.0,0.050259]
[1734058686083,0.001,99460.0,99457.0,0.29833843]
[1734058686286,0.05026,99459.0,99456.0,0.29833843]
[1734058686677,0.05026,99459.0,99457.0,0.29833843]
[1734058686888,0.05026,99459.0,99458.0,0.29833843]
[1734058687279,0.05026,99459.0,99457.0,0.050261]
[1734058687587,0.05126,99459.0,99457.0,0.050261]
[1734058688180,0.001,99460.0,99457.0,0.050261]
[1734058688591,0.10054495,99459.0,99457.0,0.050261]
[1734058688789,0.15180495,99459.0,99457.0,0.050261]
[1734058689192,0.15280495,99459.0,99457.0,0.050261]
[1734058689495,0.15180495,99459.0,99457.0,0.050261]
[1734058689794,0.15180495,99459.0,99457.0,1.550261]
[1734058689990,0.050261,99458.0,99455.0,0.29833843]
[1734058690384,0.050261,99458.0,99456.0,0.29833843]
[1734058690587,0.10054495,99457.0,99456.0,0.29833843]
[1734058690887,0.10054495,99457.0,99456.0,0.33932041]
[1734058691589,0.10054495,99457.0,99456.0,0.33942952]
[1734058691988,0.15080595,99457.0,99455.0,0.30102188]
[1734058692189,0.411062,99456.0,99455.0,0.002]
[1734058692786,0.411062,99456.0,99452.0,0.35028488]
[1734058692983,0.001,99457.0,99456.0,0.050262]
[1734058692984,0.002,99457.0,99456.0,0.050262]
[1734058693189,0.001,99457.0,99456.0,0.38993585]
[1734058693583,0.3608,99465.0,99456.0,0.33967385]
[1734058693789,0.3608,99465.0,99459.0,0.30003674]
[1734058693790,0.411057,99465.0,99459.0,0.30003674]
[1734058693992,0.050258,99463.0,99460.0,0.30003674]
[1734058694898,0.050258,99463.0,99459.0,0.30003674]
[1734058695402,0.051258,99463.0,99460.0,0.30103674]
[1734058696094,0.052258,99463.0,99460.0,0.30003674]
[1734058696292,0.052258,99463.0,99459.0,0.30203674]
[1734058696498,0.002,99463.0,99460.0,0.30003674]
[1734058696694,0.050259,99462.0,99460.0,0.30003674]
[1734058697092,0.050259,99462.0,99460.0,0.30103674]
[1734058697796,0.050259,99462.0,99460.0,0.30203674]
[1734058698001,0.10054192,99461.0,99460.0,0.30203674]
[1734058698188,0.10054192,99461.0,99460.0,0.002]
[1734058698387,0.13474192,99461.0,99460.0,0.002]
[1734058698594,0.13474192,99461.0,99460.0,0.001]
[1734058698595,0.53124192,99461.0,99460.0,0.001]
[1734058698893,0.53124192,99461.0,99460.0,0.002]
[1734058699420,0.53124192,99461.0,99456.0,0.24025793]
[1734058699697,0.53324192,99461.0,99460.0,0.002]
[1734058701393,0.53124192,99461.0,99456.0,0.24125793]
[1734058701696,0.53124192,99461.0,99456.0,0.002]
[1734058701697,0.050261,99457.0,99456.0,0.002]
[1734058702098,0.050261,99457.0,99456.0,0.24125793]
[1734058702297,0.15080342,99457.0,99456.0,0.24025793]
[1734058703000,0.15180342,99457.0,99456.0,0.001]
[1734058703201,0.15280342,99457.0,99456.0,0.002]
[1734058706802,0.16474481,99457.0,99456.0,0.002]
[1734058707000,0.002,99457.0,99456.0,0.052262]
[1734058707511,0.002,99457.0,99456.0,0.38982755]
[1734058708897,0.002,99457.0,99456.0,0.38826277]
[1734058712908,0.002,99457.0,99456.0,0.33800077]
[1734058713116,0.10254647,99457.0,99456.0,0.33800077]
[1734058713604,0.10254647,99457.0,99456.0,0.002]
[1734058714013,0.46334647,99457.0,99456.0,0.002]
[1734058714199,0.55365057,99457.0,99456.0,0.002]
[1734058714517,0.49824647,99457.0,99456.0,0.002]
[1734058715806,0.49824647,99457.0,99456.0,0.24256379]
[1734058716312,0.49824647,99457.0,99456.0,0.002]
[1734058717107,0.53494647,99457.0,99456.0,0.002]
[1734058717899,0.53494647,99457.0,99456.0,0.2425376]
[1734058718406,0.53494647,99457.0,99456.0,0.002]
[1734058719407,0.65555727,99457.0,99456.0,0.002]
[1734058719610,0.53494647,99457.0,99456.0,0.002]
[1734058720205,0.65555727,99457.0,99456.0,0.002]
[1734058720622,0.53494647,99457.0,99456.0,0.002]
[1734058721118,0.65538212,99457.0,99455.0,0.1803822]
[1734058721313,0.050265,99449.0,99448.0,0.2405376]
[1734058721609,0.3608,99449.0,99446.0,0.2405376]
[1734058721817,0.050266,99447.0,99446.0,0.2405376]
[1734058722515,0.24113882,99447.0,99446.0,0.2405376]
[1734058722707,0.24113882,99447.0,99435.0,0.30053946]
[1734058722708,0.15082258,99447.0,99445.0,0.2405376]
[1734058722908,0.15082258,99447.0,99444.0,0.2405376]
[1734058722909,0.050267,99445.0,99444.0,0.2405376]
[1734058723118,0.050267,99445.0,99442.0,0.2405376]
[1734058723119,0.050268,99444.0,99442.0,0.2405376]
[1734058723417,0.050269,99442.0,99440.0,0.2405376]
[1734058723608,0.050269,99442.0,99430.0,0.30053946]
[1734058723609,0.05027,99440.0,99439.0,0.24045164]
[1734058723805,0.05027,99440.0,99429.0,1.50072]
[1734058723806,0.050275,99430.0,99429.0,1.50072]
[1734058724010,0.050275,99430.0,99429.0,1.51332301]
[1734058724307,0.050275,99430.0,99429.0,1.51260301]
[1734058724503,0.3608,99432.0,99429.0,1.51260301]
[1734058724504,0.297575,99432.0,99429.0,1.51192301]
[1734058724705,0.21753071,99450.0,99429.0,1.51192301]
[1734058724706,0.09025943,99468.0,99431.0,0.7216]
[1734058724910,0.0376,99483.0,99465.0,0.3001952]
[1734058725111,0.0376,99483.0,99461.0,0.3608]
[1734058725112,0.3608,99486.0,99477.0,0.24014435]
[1734058725309,0.12043685,99502.0,99483.0,0.3608]
[1734058725608,0.10052878,99499.0,99494.0,0.60081882]
[1734058725812,0.3608,99510.0,99497.0,0.3001952]
[1734058726014,0.3608,99510.0,99508.0,0.23971387]
[1734058726218,0.3608,99510.0,99509.0,0.01192301]
[1734058726719,0.46129342,99510.0,99509.0,0.01192301]
[1734058727116,0.46129342,99510.0,99508.0,0.16766289]
[1734058727322,0.0369,99509.0,99491.0,0.21266697]
[1734058727616,0.050254,99471.0,99469.0,0.3001952]
[1734058727811,0.050254,99471.0,99466.0,0.050256]
[1734058727812,0.050254,99471.0,99470.0,0.3001952]
[1734058728013,0.050254,99471.0,99466.0,0.34969798]
[1734058728414,0.10049291,99470.0,99466.0,0.050256]
[1734058728809,0.10049291,99470.0,99469.0,0.009]
[1734058729614,0.10049291,99470.0,99466.0,0.059256]
[1734058729819,0.10149291,99470.0,99466.0,0.068256]
[1734058731018,0.15274791,99470.0,99469.0,0.009]
[1734058731224,0.15274791,99470.0,99469.0,0.018]
[1734058731726,0.10149291,99470.0,99466.0,0.059256]
[1734058731925,0.050255,99469.0,99466.0,0.068256]
[1734058732422,0.050255,99469.0,99466.0,0.050256]
[1734058733029,0.050256,99468.0,99466.0,0.050256]
[1734058733324,0.050257,99466.0,99462.0,0.0342]
[1734058733519,0.10053535,99469.0,99462.0,0.0342]
[1734058733729,0.050257,99466.0,99462.0,0.0342]
[1734058734111,0.050257,99466.0,99462.0,0.084458]
[1734058734515,0.050257,99466.0,99463.0,1.5]
[1734058734820,0.051257,99466.0,99463.0,1.5]
[1734058735319,0.052257,99466.0,99463.0,1.5]
[1734058735725,0.052257,99466.0,99463.0,1.509]
[1734058736021,0.052257,99466.0,99463.0,0.018]
[1734058736224,0.050258,99464.0,99463.0,0.018]
[1734058737927,0.051258,99464.0,99463.0,0.018]
[1734058738224,0.052258,99464.0,99463.0,0.018]
[1734058750229,0.00052001,99488.0,99487.0,0.050246]
[1734058750433,0.1112,99503.0,99486.0,0.3608]
[1734058750644,0.00955807,99508.0,99506.0,0.050236]
[1734058750939,0.10053939,99500.0,99499.0,0.05024]
[1734058751123,0.00150839,99511.0,99509.0,0.050234]
[1734058753133,0.00150839,99511.0,99509.0,0.059234]
[1734058753134,0.00250839,99511.0,99509.0,0.059234]
[1734058753836,0.10049241,99510.0,99509.0,0.009]
[1734058754129,0.10049241,99510.0,99495.0,0.0353]
[1734058754130,0.050235,99509.0,99495.0,0.0353]
[1734058754526,0.050235,99509.0,99496.0,1.5]
[1734058754720,0.050235,99509.0,99508.0,0.050235]
[1734058755221,0.15073549,99509.0,99508.0,0.050235]
[1734058755919,0.15073549,99509.0,99508.0,0.059235]
[1734058757029,0.15073549,99509.0,99508.0,0.068235]
[1734058757728,0.10050049,99509.0,99508.0,0.068235]
[1734058757938,0.00150839,99511.0,99510.0,0.050234]
[1734058759832,0.00150839,99511.0,99510.0,0.059234]
[1734058759833,0.00250839,99511.0,99510.0,0.059234]
[1734058760539,0.00250839,99511.0,99510.0,0.068234]
[1734058765137,0.15323429,99511.0,99510.0,0.068234]
[1734058765432,0.10300029,99511.0,99510.0,0.068234]
[1734058765653,0.001,99511.0,99510.0,0.068234]
[1734058775045,0.001,99511.0,99510.0,1.568234]
[1734058775246,0.001,99511.0,99510.0,0.068234]
[1734058775636,0.051234,99511.0,99510.0,0.068234]
[1734058776846,0.1517259,99511.0,99510.0,0.018]
[1734058778847,0.5125259,99511.0,99510.0,0.018]
[1734058781750,0.5125259,99511.0,99501.0,0.28101419]
[1734058781751,0.050239,99502.0,99501.0,0.28101419]
[1734058782053,0.050239,99502.0,99481.0,0.3608]
[1734058782054,0.050246,99487.0,99482.0,0.050248]
[1734058782348,0.411039,99502.0,99483.0,0.33313448]
[1734058782349,0.050247,99486.0,99483.0,0.33313448]
[1734058782554,0.3608,99492.0,99481.0,0.36152]
[1734058782555,0.050247,99485.0,99484.0,0.33313448]
[1734058782848,0.050247,99485.0,99479.0,1.5]
[1734058782849,0.10051817,99485.0,99479.0,1.5]
[1734058783047,0.41105,99480.0,99479.0,1.5]
[1734058784247,0.41105,99480.0,99478.0,0.05025]
[1734058784653,0.05025,99480.0,99478.0,0.05025]
[1734058784847,0.05125,99480.0,99479.0,0.009]
[1734058785242,0.05125,99480.0,99478.0,0.05925]
[1734058786055,0.05225,99480.0,99479.0,0.002]
[1734058786853,0.05225,99480.0,99478.0,0.06125]
[1734058788262,0.05225,99480.0,99478.0,0.05925]
[1734058788263,0.05125,99480.0,99478.0,0.05925]
[1734058788454,0.05225,99480.0,99479.0,0.009]
[1734058788661,0.002,99480.0,99479.0,0.009]
[1734058789147,0.002,99480.0,99479.0,1.5]
[1734058789947,0.002,99480.0,99479.0,1.509]
[1734058790159,0.001,99480.0,99479.0,1.509]
[1734058790360,0.002,99480.0,99479.0,1.518]
[1734058793550,0.002,99480.0,99479.0,1.75749329]
[1734058794459,0.002,99480.0,99479.0,1.518]
[1734058794853,0.002,99480.0,99479.0,1.75748404]
[1734058795261,0.002,99480.0,99479.0,1.518]
[1734058795472,0.002,99480.0,99479.0,1.75748473]
[1734058795670,0.002,99480.0,99479.0,1.518]
[1734058797565,0.411039,99502.0,99501.0,0.050239]
[1734058797765,0.36132001,99513.0,99509.0,0.050235]
[1734058797956,0.42044889,99513.0,99512.0,0.050233]
[1734058798366,0.52097211,99513.0,99512.0,0.050233]
[1734058798563,0.51155622,99513.0,99512.0,0.050233]
[1734058799070,0.15075622,99513.0,99512.0,0.050233]
[1734058799774,0.15175622,99513.0,99512.0,0.059233]
[1734058800674,0.15275622,99513.0,99512.0,0.059233]
[1734058801069,0.15275622,99513.0,99512.0,0.068233]
[1734058801668,0.10252322,99513.0,99512.0,0.068233]
[1734058802270,0.002,99513.0,99512.0,0.068233]
[1734058802471,0.3608,99520.0,99519.0,0.05023]
[1734058802776,0.050226,99528.0,99527.0,0.050226]
[1734058803863,0.050228,99522.0,99521.0,0.23955227]
[1734058804069,0.050228,99522.0,99520.0,0.050229]
[1734058804374,0.052229,99520.0,99519.0,0.018]
[1734058804772,0.052229,99520.0,99519.0,0.24855227]
[1734058804773,0.001,99520.0,99519.0,0.24855227]
[1734058804967,0.001,99520.0,99519.0,0.009]
[1734058805166,0.001,99522.0,99521.0,0.059229]
[1734058805369,0.001,99522.0,99521.0,0.29849634]
[1734058805565,0.001,99522.0,99521.0,0.059229]
[1734058805968,0.00961247,99531.0,99521.0,0.050229]
[1734058806173,0.1004808,99522.0,99521.0,0.050229]
[1734058806366,0.050228,99523.0,99521.0,0.050229]
[1734058806571,0.1004808,99522.0,99521.0,0.050229]
[1734058807086,0.1014808,99522.0,99521.0,0.059229]
[1734058807375,0.001,99522.0,99521.0,0.059229]
[1734058808182,0.002,99522.0,99521.0,0.068229]
[1734058810483,0.1024808,99522.0,99521.0,0.018]
[1734058812583,0.002,99522.0,99521.0,0.018]
[1734058816682,0.12045169,99552.0,99521.0,0.018]
[1734058816683,0.3608,99552.0,99521.0,0.018]
[1734058816889,0.3608,99552.0,99531.0,0.3608]
[1734058816890,0.050217,99546.0,99531.0,0.3608]
[1734058817087,0.050217,99545.0,99531.0,0.3608]
[1734058817390,0.1004808,99545.0,99544.0,0.050217]
[1734058817593,0.0781,99551.0,99544.0,0.050217]
[1734058817775,0.128314,99551.0,99546.0,0.050216]
[1734058817981,0.10046414,99550.0,99536.0,1.5]
[1734058818280,0.10046414,99550.0,99548.0,0.050215]
[1734058819888,0.10046414,99550.0,99548.0,0.059215]
[1734058820985,0.10046414,99550.0,99548.0,0.068215]
[1734058821982,0.15067914,99550.0,99548.0,0.018]
[1734058822185,0.10046414,99550.0,99548.0,0.018]
[1734058822381,0.10046414,99550.0,99548.0,0.068215]
[1734058827005,0.15067914,99550.0,99548.0,0.068215]
[1734058830114,0.10046414,99550.0,99548.0,0.068215]
[1734058830997,0.00052001,99552.0,99551.0,0.050214]
[1734058831202,0.3608,99559.0,99557.0,0.05021]
[1734058832107,0.00150709,99570.0,99569.0,0.050205]
[1734058832902,0.01104673,99570.0,99569.0,0.050205]
[1734058833207,0.10193945,99570.0,99569.0,0.050205]
[1734058833410,0.10193945,99570.0,99569.0,0.059205]
[1734058834708,0.10293945,99570.0,99569.0,0.068205]
[1734058835507,0.00250709,99570.0,99569.0,0.068205]
[1734058837403,0.001,99570.0,99569.0,0.068205]
[1734058837599,0.3608,99583.0,99573.0,0.050203]
[1734058837799,0.3608,99591.0,99575.0,0.59954926]
[1734058838012,0.3608,99591.0,99590.0,0.050194]
[1734058838809,0.3608,99591.0,99584.0,1.590977]
[1734058838810,0.050196,99587.0,99584.0,1.590977]
[1734058839110,0.050196,99587.0,99584.0,1.550197]
[1734058839306,0.050196,99587.0,99585.0,0.050197]
[1734058840010,0.00056001,99591.0,99589.0,0.050195]
[1734058840217,0.050193,99593.0,99589.0,0.050195]
[1734058840409,0.10041572,99590.0,99589.0,0.050195]
[1734058840707,0.050194,99591.0,99589.0,0.050195]
[1734058840910,0.050196,99587.0,99585.0,0.009]
[1734058842207,0.050196,99587.0,99584.0,0.050197]
[1734058842409,0.0376,99593.0,99579.0,0.23874926]
[1734058842613,0.087793,99593.0,99587.0,0.050196]
[1734058842914,0.10041572,99592.0,99588.0,0.050195]
[1734058843113,0.15060872,99592.0,99588.0,0.050195]
[1734058843308,0.10041572,99592.0,99588.0,0.050195]
[1734058843517,0.0376,99599.0,99588.0,0.050195]
[1734058843718,0.10041572,99591.0,99588.0,0.050195]
[1734058844010,0.0376,99599.0,99588.0,0.059195]
[1734058844203,0.10041168,99590.0,99588.0,0.059195]
[1734058844405,0.15060768,99590.0,99588.0,0.009]
[1734058844715,0.3608,99593.0,99579.0,0.009]
[1734058844716,0.3608,99593.0,99580.0,0.23874926]
[1734058845014,0.050196,99589.0,99588.0,0.009]
[1734058845207,0.050196,99589.0,99588.0,0.018]
[1734058845811,0.0376,99599.0,99588.0,0.009]
[1734058846011,0.10953072,99600.0,99591.0,0.050194]
[1734058846316,0.1506072,99592.0,99588.0,0.009]
[1734058846515,0.050194,99592.0,99588.0,0.018]
[1734058846810,0.1004132,99591.0,99588.0,0.009]
[1734058847011,0.1004132,99591.0,99588.0,0.018]
[1734058847214,0.1506082,99591.0,99588.0,0.068196]
[1734058847414,0.050195,99591.0,99588.0,0.068196]
[1734058847718,0.10041168,99590.0,99588.0,0.068196]
[1734058847909,0.15060668,99590.0,99588.0,0.068196]
[1734058850712,0.1,99600.0,99589.0,0.17884288]
[1734058850919,0.36230651,99614.0,99613.0,0.050183]
[1734058851217,0.36230651,99614.0,99596.0,0.3608]
[1734058851218,0.050184,99612.0,99610.0,0.050185]
[1734058851418,0.050184,99612.0,99601.0,0.23874926]
[1734058851419,0.050186,99609.0,99607.0,0.17877323]
[1734058851624,0.0414,99611.0,99602.0,0.17877323]
[1734058851817,0.0414,99611.0,99601.0,0.17877323]
[1734058851818,0.050188,99603.0,99601.0,0.17877323]
[1734058852014,0.3608,99606.0,99598.0,0.17877323]
[1734058852215,0.3608,99606.0,99596.0,0.410992]
[1734058852216,0.3608,99606.0,99596.0,0.050192]
[1734058852411,0.05019,99601.0,99596.0,0.050192]
[1734058852925,0.05019,99601.0,99599.0,0.17877323]
[1734058853125,0.050192,99597.0,99596.0,0.17877323]
[1734058853314,0.050192,99597.0,99595.0,0.17877323]
[1734058853512,0.050192,99597.0,99594.0,0.17877323]
[1734058853715,0.050192,99597.0,99593.0,0.22896623]
[1734058853921,0.050192,99597.0,99594.0,0.17877323]
[1734058854122,0.050192,99597.0,99593.0,0.050193]
[1734058854123,0.050192,99597.0,99593.0,0.22896623]
[1734058854320,0.42429108,99606.0,99604.0,0.050188]
[1734058854321,0.3608,99606.0,99604.0,0.050188]
[1734058854731,0.0094834,99612.0,99611.0,0.050184]
[1734058855018,0.050184,99613.0,99611.0,0.050184]
[1734058856321,0.050186,99609.0,99605.0,0.050187]
[1734058856516,0.050186,99608.0,99605.0,0.050187]
[1734058856722,0.410987,99606.0,99604.0,0.018]
[1734058857224,0.410987,99606.0,99604.0,0.009]
[1734058857427,0.05019,99601.0,99599.0,0.17877323]
[1734058858019,0.1505916,99600.0,99598.0,0.22896423]
[1734058858325,0.1505916,99600.0,99599.0,0.17877323]
[1734058858326,0.05019,99600.0,99599.0,0.17877323]
[1734058858915,0.15059211,99600.0,99598.0,0.17877323]
[1734058859120,0.050191,99598.0,99597.0,0.17877323]
[1734058859322,0.050191,99598.0,99592.0,0.0015061]
[1734058860121,0.050192,99596.0,99594.0,0.050193]
[1734058860319,0.3608,99606.0,99592.0,0.0015061]
[1734058860320,0.050193,99594.0,99592.0,0.0015061]
[1734058860520,0.050193,99594.0,99592.0,0.0105061]
[1734058860718,0.13840664,99593.0,99592.0,0.009]
[1734058861219,0.13840664,99593.0,99584.0,0.17907013]
[1734058861416,0.0502,99580.0,99579.0,0.23874926]
[1734058861824,0.0502,99580.0,99578.0,0.23874926]
[1734058862033,0.089301,99579.0,99578.0,0.23874926]
[1734058862330,0.089301,99579.0,99578.0,0.23902278]
[1734058862825,0.050203,99575.0,99573.0,0.17929885]
[1734058863125,0.050203,99575.0,99571.0,0.00058]
[1734058863126,0.050204,99573.0,99572.0,0.17929885]
[1734058863431,0.050204,99573.0,99572.0,0.17933249]
[1734058863926,0.15063333,99573.0,99572.0,0.17933249]
[1734058864530,0.15063333,99573.0,99571.0,0.17991249]
[1734058865521,0.15063333,99573.0,99572.0,0.009]
[1734058865820,0.15063333,99573.0,99572.0,0.18833249]
[1734058866120,0.15063333,99573.0,99572.0,0.17933249]
[1734058866317,0.15063333,99573.0,99572.0,0.009]
[1734058867023,0.08983382,99581.0,99572.0,0.009]
[1734058867024,0.3608,99599.0,99572.0,0.98922166]
[1734058867325,0.10042933,99599.0,99591.0,0.54003684]
[1734058867525,0.10042933,99599.0,99598.0,0.050191]
[1734058867736,0.10042933,99599.0,99597.0,1.73898246]
[1734058867737,0.3608,99606.0,99602.0,0.050189]
[1734058868029,0.3608,99606.0,99597.0,1.50088]
[1734058868030,0.10040311,99605.0,99603.0,0.17913253]
[1734058868325,0.10040311,99605.0,99604.0,0.050188]
[1734058868732,0.10040311,99605.0,99604.0,0.22932053]
[1734058869327,0.10040311,99605.0,99604.0,0.050188]
[1734058869523,0.10040311,99605.0,99604.0,0.22932053]
[1734058869832,0.3608,99606.0,99604.0,0.22932053]
[1734058870227,0.3608,99606.0,99604.0,0.059188]
[1734058870623,0.00150651,99614.0,99604.0,0.059188]
[1734058870624,0.00150651,99614.0,99613.0,0.050183]
[1734058871025,0.00150651,99614.0,99613.0,0.28890462]
[1734058871322,0.00150651,99614.0,99613.0,0.050183]
[1734058871929,0.00150651,99614.0,99613.0,0.059183]
[1734058872920,0.00150651,99614.0,99613.0,0.068183]
[1734058877635,0.4626945,99614.0,99613.0,0.018]
[1734058877839,0.1018945,99614.0,99613.0,0.018]
[1734058878928,0.00150651,99614.0,99613.0,0.018]
[1734058879332,0.00150651,99614.0,99613.0,0.0603]
[1734058883530,0.00150651,99614.0,99613.0,0.018]
[1734058887143,0.3608,99623.0,99613.0,0.018]
[1734058887342,0.3608,99634.0,99633.0,0.050173]
[1734058887539,0.45063382,99646.0,99624.0,0.09678603]
[1734058887540,0.3608,99646.0,99624.0,0.09678603]
[1734058887745,0.050167,99645.0,99642.0,0.050169]
[1734058887947,0.10038799,99643.0,99642.0,0.050169]
[1734058888145,0.050167,99645.0,99644.0,0.050168]
[1734058888835,0.15053434,99645.0,99644.0,0.050168]
[1734058890947,0.10036734,99645.0,99644.0,0.050168]
[1734058896848,0.3608,99646.0,99644.0,0.23787166]
[1734058897053,0.3608,99646.0,99644.0,0.059168]
[1734058897252,0.08983382,99668.0,99645.0,0.17901344]
[1734058897448,0.00952271,99663.0,99653.0,0.050165]
[1734058898459,0.050161,99661.0,99653.0,0.050165]
[1734058899547,0.0395,99668.0,99653.0,0.009]
[1734058899754,0.089658,99668.0,99661.0,0.050161]
[1734058899959,0.050158,99667.0,99661.0,0.050161]
[1734058900857,0.3608,99669.0,99661.0,0.050161]
[1734058901064,0.05016,99663.0,99661.0,0.050161]
[1734058902149,0.37136715,99669.0,99661.0,0.050161]
[1734058902350,0.42152415,99669.0,99661.0,0.050161]
[1734058902960,0.37136715,99669.0,99661.0,0.050161]
[1734058903260,0.050159,99666.0,99664.0,0.050159]
[1734058904156,0.10033612,99665.0,99664.0,0.050159]
[1734058905071,0.050161,99660.0,99658.0,0.050162]
[1734058905373,0.37132715,99669.0,99640.0,0.45758603]
[1734058905374,0.3608,99659.0,99652.0,0.17900837]
[1734058905574,0.050166,99652.0,99649.0,0.17900837]
[1734058905772,0.050166,99652.0,99648.0,0.17900837]
[1734058905976,0.050166,99652.0,99647.0,0.050168]
[1734058906166,0.050166,99652.0,99640.0,0.45758603]
[1734058906167,0.050164,99655.0,99645.0,0.17900837]
[1734058906477,0.10035072,99651.0,99646.0,0.22917637]
[1734058906667,0.050166,99652.0,99649.0,0.018]
[1734058907067,0.10035273,99651.0,99649.0,0.018]
[1734058907570,0.10035273,99651.0,99649.0,0.009]
[1734058908572,0.10035273,99651.0,99647.0,0.050168]
[1734058908573,0.050167,99649.0,99647.0,0.050168]
[1734058909180,0.10035324,99648.0,99647.0,0.050168]
[1734058909681,0.10035324,99648.0,99647.0,0.059168]
[1734058909867,0.10035324,99648.0,99647.0,0.068168]
[1734058911680,0.10035324,99648.0,99647.0,0.018]
[1734058911871,0.1102793,99648.0,99647.0,0.018]
[1734058913189,0.3608,99651.0,99650.0,0.050166]
[1734058913771,0.3608,99651.0,99650.0,0.28888762]
[1734058914079,0.3608,99651.0,99650.0,1.78888762]
[1734058914376,0.3608,99651.0,99650.0,1.550166]
[1734058915080,0.3608,99651.0,99650.0,1.559166]
[1734058915480,0.3608,99651.0,99650.0,1.568166]
[1734058917585,0.45063382,99667.0,99650.0,2.18740671]
[1734058917788,0.45063382,99667.0,99666.0,0.050158]
[1734058917974,0.58114096,99710.0,99670.0,0.050156]
[1734058917975,0.08983382,99682.0,99670.0,0.050156]
[1734058918176,0.08983382,99685.0,99670.0,0.050156]
[1734058918371,0.050148,99687.0,99670.0,0.050156]
[1734058918575,0.050148,99687.0,99670.0,1.84900766]
[1734058918980,0.410948,99687.0,99670.0,2.15379828]
[1734058919174,0.410948,99687.0,99670.0,1.550156]
[1734058919374,0.050149,99684.0,99670.0,1.550156]
[1734058921686,0.3608,99687.0,99670.0,1.550156]
[1734058921873,0.05015,99683.0,99670.0,1.550156]
[1734058922285,0.05015,99683.0,99670.0,0.050156]
[1734058923284,0.05015,99683.0,99670.0,0.059156]
[1734058923787,0.3608,99687.0,99686.0,0.050148]
[1734058924476,0.3608,99687.0,99686.0,0.22905171]
[1734058925382,0.3608,99687.0,99686.0,1.559148]
[1734058925585,0.3608,99687.0,99686.0,1.568148]
[1734058925786,0.3608,99687.0,99686.0,0.068148]
[1734058925976,0.410948,99687.0,99686.0,0.068148]
[1734058926985,0.51126248,99687.0,99686.0,0.018]
[1734058928586,0.050155,99672.0,99671.0,0.17890371]
[1734058928787,0.050155,99672.0,99661.0,0.00088]
[1734058928788,0.05016,99662.0,99661.0,0.00088]
[1734058929090,0.05016,99662.0,99654.0,0.23863045]
[1734058929091,0.050162,99659.0,99655.0,0.050164]
[1734058929279,0.3608,99662.0,99656.0,0.050163]
[1734058929485,0.3608,99662.0,99657.0,0.050163]
[1734058929688,0.3608,99662.0,99657.0,0.22906671]
[1734058929689,0.410961,99662.0,99657.0,0.22906671]
[1734058930094,0.410961,99662.0,99661.0,0.009]
[1734058930990,0.3608,99662.0,99661.0,0.009]
[1734058931187,0.3608,99672.0,99671.0,0.050156]
[1734058931588,0.3608,99672.0,99671.0,0.22910609]
[1734058932581,0.3618,99672.0,99671.0,0.059156]
[1734058932983,0.3618,99672.0,99671.0,1.559156]
[1734058933181,0.3628,99672.0,99671.0,1.74710609]
[1734058934799,0.3628,99672.0,99671.0,1.568156]
[1734058936496,0.00202543,99682.0,99681.0,0.050151]
[1734058936800,0.3608,99691.0,99681.0,0.22894673]
[1734058937002,0.3608,99691.0,99690.0,0.050146]
[1734058937998,0.050143,99696.0,99693.0,0.050145]
[1734058938210,0.050143,99696.0,99695.0,0.050144]
[1734058939499,0.051143,99696.0,99695.0,0.059144]
[1734058939699,0.052143,99696.0,99695.0,0.068144]
[1734058942001,0.002,99696.0,99695.0,0.068144]
[1734058943294,0.002,99696.0,99695.0,1.568144]
[1734058943605,0.002,99696.0,99695.0,1.74693973]
[1734058946301,0.002,99696.0,99695.0,1.568144]
[1734058946500,0.002,99696.0,99695.0,1.74693973]
[1734058946714,0.002,99696.0,99695.0,0.24693973]
[1734058947008,0.002,99696.0,99695.0,0.068144]
[1734058947204,0.002,99696.0,99695.0,0.24693973]
[1734058947796,0.002,99696.0,99695.0,0.068144]
[1734058948213,0.002,99696.0,99695.0,0.24700272]
[1734058949510,0.002,99696.0,99695.0,0.19685872]
[1734058949701,0.002,99696.0,99695.0,0.018]
[1734058950007,0.0434,99696.0,99695.0,0.018]
[1734058950809,0.0531464,99696.0,99695.0,0.018]
[1734058951810,0.15345183,99696.0,99695.0,0.018]
[1734058957607,0.15345183,99696.0,99695.0,1.518]
[1734058959310,0.15345183,99696.0,99695.0,0.018]
[1734058960802,0.20222146,99696.0,99695.0,0.018]
[1734058961719,0.20222236,99696.0,99695.0,0.018]
[1734058963316,0.15345183,99696.0,99695.0,0.018]
[1734058966811,0.15345183,99696.0,99688.0,0.17886392]
[1734058967118,0.53101917,99689.0,99688.0,0.17886392]
[1734058967311,0.48087217,99689.0,99678.0,0.17909323]
[1734058967517,0.50099763,99679.0,99678.0,0.17909323]
[1734058968318,0.60132016,99679.0,99678.0,0.17909323]
[1734058968719,0.050155,99673.0,99672.0,0.23879098]
[1734058969321,0.15048357,99673.0,99672.0,0.23879098]
[1734058969818,0.15148357,99673.0,99672.0,0.24779098]
[1734058970412,0.15248357,99673.0,99672.0,0.25679098]
[1734058972706,0.16211341,99673.0,99672.0,0.25679098]
[1734058974008,0.15248357,99673.0,99672.0,0.25679098]
[1734058974216,0.052155,99673.0,99672.0,0.25679098]
[1734058974715,0.052155,99673.0,99672.0,1.75679098]
[1734058976719,0.35027501,99679.0,99672.0,1.75679098]
[1734058976919,0.050153,99676.0,99672.0,1.75679098]